fUST/lending_fUST_20240514
["ID","MTS","AMOUNT","RATE_DAILY","PERIOD"]
[326936027,1715620248735,-171.45579294,0.00054794,120]
[326936028,1715620248745,-536.93,0.00054794,120]
[326936029,1715620248755,-500.0,0.00054794,2]
[326936030,1715620248764,-714.05,0.00054794,120]
[326936031,1715620248774,-500.0,0.00054794,120]
[326936032,1715620248784,-500.0,0.00054794,120]
[326936033,1715620248793,-422.94821738,0.00054794,120]
[326936034,1715620248803,-500.0,0.00054794,120]
[326936035,1715620248812,-500.0,0.00054794,120]
[326936036,1715620248822,-500.0,0.00054794,120]
[326936037,1715620248832,-500.0,0.00054794,120]
[326936038,1715620248841,-547.1526529,0.00054794,120]
[326936039,1715620248850,-842.83,0.00054794,120]
[326936040,1715620248860,-505.47616847,0.00054794,120]
[326936041,1715620248869,-500.0,0.00054794,120]
[326936042,1715620248879,-500.0,0.00054794,120]
[326936043,1715620248890,-309.02363625,0.00054794,120]
[326936044,1715620248900,-500.0,0.00054794,120]
[326936045,1715620248910,-537.34,0.00054794,120]
[326936046,1715620248920,-500.0,0.00054794,120]
[326936047,1715620248930,-511.50477395,0.00054794,120]
[326936048,1715620248940,-2711.29,0.00054794,120]
[326936049,1715620248949,-500.0,0.00054794,120]
[326936050,1715620248958,-423.40429184,0.00054794,120]
[326936051,1715620248968,-505.42740612,0.00054794,120]
[326936052,1715620248980,-500.0,0.00054794,120]
[326936053,1715620248989,-500.0,0.00054794,120]
[326936054,1715620248999,-500.0,0.00054794,120]
[326936055,1715620249009,-2100.98,0.00054794,120]
[326936056,1715620249019,-663.9,0.00054794,120]
[326936057,1715620249028,-500.0,0.00054794,120]
[326936058,1715620249038,-600.0,0.00054794,120]
[326936059,1715620249047,-500.0,0.00054794,120]
[326936060,1715620249057,-500.0,0.00054794,120]
[326936061,1715620249066,-548.32579573,0.00054794,120]
[326936062,1715620249075,-500.0,0.00054794,120]
[326936063,1715620249086,-413.89258037,0.00054794,120]
[326936064,1715620249095,-500.0,0.00054794,120]
[326936065,1715620249106,-500.0,0.00054794,120]
[326936066,1715620249116,-1000.0,0.00054794,120]
[326936067,1715620249125,-1197.91,0.00054794,2]
[326936068,1715620249135,-500.0,0.00054794,120]
[326936069,1715620249144,-712.92,0.00054794,120]
[326936070,1715620249154,-3267.79,0.00054794,2]
[326936071,1715620249163,-500.0,0.00054794,120]
[326936072,1715620249173,-500.0,0.00054794,120]
[326936073,1715620249183,-590.8663204,0.00054794,120]
[326936074,1715620249192,-625.99092419,0.00054794,120]
[326936075,1715620249201,-500.0,0.00054794,120]
[326936076,1715620249211,-500.0,0.00054794,120]
[326936077,1715620249220,-151.0,0.00054794,7]
[326936078,1715620249229,-151.0,0.00054794,7]
[326936079,1715620249239,-151.0,0.00054794,7]
[326936080,1715620249248,-573.24,0.00054794,120]
[326936081,1715620249258,-234.58978485,0.00054794,120]
[326936082,1715620249267,-500.0,0.00054794,120]
[326936083,1715620249278,-347.12575969,0.00054794,120]
[326936084,1715620249287,-562.27958098,0.00054794,120]
[326936085,1715620249296,-450.21148713,0.00054794,120]
[326936086,1715620249306,-500.0,0.00054794,120]
[326936087,1715620249315,-621.0,0.00054794,120]
[326936088,1715620249324,-644.76,0.00054794,120]
[326936089,1715620249334,-500.0,0.00054794,120]
[326936090,1715620249343,-500.0,0.00054794,120]
[326936091,1715620249352,-593.33,0.00054794,120]
[326936092,1715620249455,-500.0,0.00054794,120]
[326936093,1715620249466,-500.0,0.00054794,120]
[326936094,1715620249478,-671.99,0.00054794,120]
[326936095,1715620249487,-500.0,0.00054794,120]
[326936096,1715620249499,-500.0,0.00054794,120]
[326936097,1715620249509,-500.0,0.00054794,120]
[326936098,1715620249518,-764.66,0.00054794,21]
[326936099,1715620249527,-500.0,0.00054794,120]
[326936100,1715620249537,-500.0,0.00054794,120]
[326936101,1715620249546,-500.0,0.00054794,120]
[326936102,1715620249555,-500.0,0.00054794,7]
[326936103,1715620249564,-500.0,0.00054794,120]
[326936104,1715620249574,-397.27020162,0.00054794,120]
[326936105,1715620249582,-507.72214481,0.00054794,120]
[326936106,1715620249591,-500.0,0.00054794,120]
[326936107,1715620249600,-580.4023431,0.00054794,120]
[326936108,1715620249610,-502.42795331,0.00054794,120]
[326936109,1715620249619,-500.0,0.00054794,120]
[326936110,1715620249628,-1833.64,0.00054794,120]
[326936111,1715620249637,-522.19690124,0.00054794,120]
[326936112,1715620249647,-500.0,0.00054794,120]
[326936113,1715620249655,-504.74338014,0.00054794,120]
[326936114,1715620249664,-535.29177895,0.00054794,120]
[326936115,1715620249673,-501.5357283,0.00054794,120]
[326936116,1715620249683,-505.03452232,0.00054794,120]
[326936117,1715620249691,-1000.0,0.00054794,120]
[326936118,1715620249700,-500.0,0.00054794,120]
[326936119,1715620249710,-673.29,0.00054794,120]
[326936120,1715620249720,-465.46567295,0.00054794,120]
[326936121,1715620249729,-529.36394622,0.00054794,120]
[326936122,1715620249738,-1891.43,0.00054794,120]
[326936123,1715620249747,-503.45932611,0.00054794,120]
[326936124,1715620249756,-507.3100152,0.00054794,120]
[326936125,1715620249765,-501.6392982,0.00054794,120]
[326936126,1715620249775,-389.11518555,0.00054794,120]
[326936127,1715620249784,-520.18876156,0.00054794,120]
[326936128,1715620249793,-500.0,0.00054794,120]
[326936129,1715620249802,-500.0,0.00054794,120]
[326936130,1715620249811,-500.0,0.00054794,120]
[326936131,1715620249821,-5977.47,0.00054794,120]
[326936132,1715620249830,-515.09666033,0.00054794,120]
[326936133,1715620249839,-503.10888521,0.00054794,7]
[326936134,1715620249848,-501.45830359,0.00054794,120]
[326936135,1715620249857,-502.50805138,0.00054794,120]
[326936136,1715620249866,-779.24,0.00054794,120]
[326936137,1715620249876,-500.0,0.00054794,120]
[326936138,1715620249885,-500.76261501,0.00054794,120]
[326936139,1715620249894,-504.72646831,0.00054794,120]
[326936140,1715620249903,-187.96295018,0.00054794,120]
[326936141,1715620249912,-505.80019402,0.00054794,120]
[326936142,1715620249921,-500.0,0.00054794,120]
[326936143,1715620249931,-280.82913321,0.00054794,120]
[326936144,1715620249940,-501.27978027,0.00054794,120]
[326936145,1715620249949,-500.0,0.00054794,120]
[326936146,1715620249959,-239.90968799,0.00054794,120]
[326936147,1715620249968,-525.57984916,0.00054794,120]
[326936148,1715620249979,-505.38051165,0.00054794,120]
[326936149,1715620249988,-501.88671713,0.00054794,120]
[326936150,1715620249998,-500.0,0.00054794,120]
[326936151,1715620250007,-502.10141497,0.00054794,120]
[326936152,1715620250016,-501.39493985,0.00054794,120]
[326936153,1715620250025,-500.0,0.00054794,120]
[326936154,1715620250035,-514.21855635,0.00054794,120]
[326936155,1715620250044,-508.69478158,0.00054794,120]
[326936156,1715620250054,-500.0,0.00054794,120]
[326936157,1715620250063,-151.0,0.00054794,7]
[326936158,1715620250072,-3679.56,0.00054794,120]
[326936159,1715620250081,-151.0,0.00054794,7]
[326936160,1715620250091,-151.0,0.00054794,7]
[326936161,1715620250100,-1881.28,0.00054794,120]
[326936162,1715620250109,-1881.28,0.00054794,120]
[326936163,1715620250118,-1881.28,0.00054794,120]
[326936164,1715620250128,-1881.28,0.00054794,120]
[326936165,1715620250137,-1881.28,0.00054794,120]
[326936166,1715620250146,-1881.28,0.00054794,120]
[326936167,1715620250155,-1881.28,0.00054794,120]
[326936168,1715620250164,-1881.28,0.00054794,120]
[326936169,1715620250173,-500.0,0.00054794,120]
[326936170,1715620250183,-1881.28,0.00054794,120]
[326936171,1715620250192,-811.32,0.00054794,120]
[326936172,1715620250201,-500.0,0.00054794,120]
[326936173,1715620250210,-1881.28,0.00054794,120]
[326936174,1715620250222,-500.0,0.00054794,120]
[326936175,1715620250231,-1881.28,0.00054794,120]
[326936176,1715620250241,-500.0,0.00054794,120]
[326936177,1715620250250,-1881.28,0.00054794,120]
[326936178,1715620250260,-295.57865284,0.00054794,120]
[326936179,1715620250270,-1881.28,0.00054794,120]
[326936180,1715620250280,-509.57891917,0.00054794,120]
[326936181,1715620250290,-1881.28,0.00054794,120]
[326936182,1715620250300,-1881.28,0.00054794,120]
[326936183,1715620250309,-1881.28,0.00054794,120]
[326936184,1715620250318,-1881.28,0.00054794,120]
[326936185,1715620250327,-1881.28,0.00054794,120]
[326936186,1715620250336,-1881.28,0.00054794,120]
[326936187,1715620250345,-505.48716138,0.00054794,120]
[326936188,1715620250355,-1881.28,0.00054794,120]
[326936189,1715620250364,-500.0,0.00054794,120]
[326936190,1715620250373,-1881.28,0.00054794,120]
[326936191,1715620250382,-1881.28,0.00054794,120]
[326936192,1715620250391,-1881.28,0.00054794,120]
[326936193,1715620250401,-1881.47975868,0.00054794,120]
[326936194,1715620250410,-500.0,0.00054794,120]
[326936195,1715620250420,-796.56,0.00054794,120]
[326936196,1715620250433,-500.0,0.00054794,120]
[326936197,1715620250442,-502.63895941,0.00054794,120]
[326936198,1715620250451,-504.45859065,0.00054794,120]
[326936199,1715620250461,-1232.69,0.00054794,120]
[326936200,1715620250473,-1479.77,0.00054794,120]
[326936201,1715620250483,-500.0,0.00054794,120]
[326936202,1715620250493,-502.21016183,0.00054794,120]
[326936203,1715620250503,-503.96710098,0.00054794,120]
[326936204,1715620250513,-505.73457453,0.00054794,120]
[326936205,1715620250523,-501.96938024,0.00054794,120]
[326936206,1715620250532,-500.0,0.00054794,120]
[326936207,1715620250542,-500.77628611,0.00054794,120]
[326936208,1715620250551,-502.63692791,0.00054794,120]
[326936209,1715620250559,-500.0,0.00054794,120]
[326936210,1715620250568,-497.4,0.00054794,2]
[326936211,1715620250577,-500.0,0.00054794,120]
[326936212,1715620250587,-546.18563887,0.00054794,2]
[326936213,1715620250595,-500.0,0.00054794,120]
[326936214,1715620250605,-12589.51,0.00054794,120]
[326936215,1715620250614,-503.43360036,0.00054794,120]
[326936216,1715620250623,-521.06166419,0.00054794,120]
[326936217,1715620250632,-512.34331016,0.00054794,120]
[326936218,1715620250641,-502.94592828,0.00054794,120]
[326936219,1715620250650,-500.0,0.00054794,30]
[326936220,1715620250660,-500.0,0.00054794,120]
[326936221,1715620250670,-500.0,0.00054794,120]
[326936222,1715620250679,-1000.0,0.00054794,4]
[326936223,1715620250688,-500.0,0.00054794,120]
[326936224,1715620250697,-501.41329685,0.00054794,120]
[326936225,1715620250706,-608.10858306,0.00054794,120]
[326936226,1715620250715,-500.0,0.00054794,120]
[326936227,1715620250727,-5321.77,0.00055,30]
[326936228,1715620250736,-186.9870619,0.00055,30]
[326936229,1715620250745,-500.00627923,0.00055068,120]
[326936230,1715620250753,-1412.14,0.00055068,120]
[326936231,1715620250762,-500.0,0.00055068,120]
[326936232,1715620250771,-599.01,0.00055068,120]
[326936233,1715620250780,-599.03,0.00055068,120]
[326936234,1715620250789,-500.0,0.00055068,120]
[326936235,1715620250798,-500.0,0.00055068,120]
[326936236,1715620250807,-500.0,0.00055068,120]
[326936237,1715620250816,-500.0,0.00055068,120]
[326936238,1715620250825,-500.0,0.00055068,120]
[326936239,1715620250834,-500.0,0.00055068,2]
[326936240,1715620250843,-1015.19,0.00055068,4]
[326936241,1715620250852,-500.0,0.00055068,120]
[326936242,1715620250862,-500.0,0.00055068,120]
[326936243,1715620250871,-649.51,0.00055068,120]
[326936244,1715620250879,-228.44,0.00055068,120]
[326936245,1715620250888,-500.0,0.00055068,120]
[326936246,1715620250897,-500.0,0.00055068,30]
[326936247,1715620250906,-500.0,0.00055068,2]
[326936248,1715620250915,-500.0,0.00055068,120]
[326936249,1715620250924,-500.0,0.00055068,120]
[326936250,1715620250934,-500.0,0.00055068,120]
[326936251,1715620250943,-500.0,0.00055068,120]
[326936252,1715620250952,-302.42210262,0.00055068,120]
[326936253,1715620250961,-536.93,0.00055068,120]
[326936254,1715620250970,-500.0,0.00055068,2]
[326936255,1715620250982,-714.05,0.00055068,120]
[326936256,1715620250991,-500.0,0.00055068,120]
[326936257,1715620251001,-500.0,0.00055068,120]
[326936258,1715620251010,-500.0,0.00055068,120]
[326936259,1715620251019,-500.0,0.00055068,120]
[326936260,1715620251028,-376.61383395,0.00055068,120]
[326936261,1715620251037,-500.0,0.00055068,120]
[326936262,1715620251046,-842.83,0.00055068,120]
[326936263,1715620251055,-500.0,0.00055068,120]
[326936264,1715620251064,-500.0,0.00055068,120]
[326936265,1715620251073,-500.0,0.00055068,120]
[326936266,1715620251082,-537.34,0.00055068,120]
[326936267,1715620251091,-500.0,0.00055068,120]
[326936268,1715620251101,-2711.29,0.00055068,120]
[326936269,1715620251111,-500.0,0.00055068,120]
[326936270,1715620251121,-500.0,0.00055068,120]
[326936271,1715620251130,-500.0,0.00055068,120]
[326936272,1715620251139,-500.0,0.00055068,120]
[326936273,1715620251148,-2100.98,0.00055068,120]
[326936274,1715620251158,-663.9,0.00055068,120]
[326936275,1715620251167,-500.0,0.00055068,120]
[326936276,1715620251176,-302.59528872,0.00055068,120]
[326936277,1715620251186,-500.0,0.00055068,120]
[326936278,1715620251195,-500.0,0.00055068,120]
[326936279,1715620251205,-500.0,0.00055068,120]
[326936280,1715620251215,-519.5261134,0.00055068,120]
[326936281,1715620251228,-500.0,0.00055068,120]
[326936282,1715620251239,-1000.0,0.00055068,120]
[326936283,1715620251248,-1197.91,0.00055068,2]
[326936284,1715620251258,-712.92,0.00055068,120]
[326936285,1715620251268,-500.0,0.00055068,120]
[326936286,1715620251278,-3267.79,0.00055068,2]
[326936287,1715620251287,-500.0,0.00055068,120]
[326936288,1715620251297,-500.0,0.00055068,120]
[326936289,1715620251307,-500.0,0.00055068,120]
[326936290,1715620251316,-505.85929806,0.00055068,120]
[326936291,1715620251325,-151.0,0.00055068,120]
[326936292,1715620251335,-573.24,0.00055068,120]
[326936293,1715620251344,-500.0,0.00055068,120]
[326936294,1715620251353,-500.0,0.00055068,120]
[326936295,1715620251363,-621.0,0.00055068,120]
[326936296,1715620251373,-644.76,0.00055068,120]
[326936297,1715620251382,-500.0,0.00055068,120]
[326936298,1715620251391,-500.0,0.00055068,120]
[326936299,1715620251400,-593.33,0.00055068,120]
[326936300,1715620251410,-500.0,0.00055068,120]
[326936301,1715620251428,-606.42599491,0.00055068,120]
[326936302,1715620251444,-671.99,0.00055068,120]
[326936303,1715620251453,-500.0,0.00055068,120]
[326936304,1715620251464,-500.0,0.00055068,120]
[326936305,1715620251478,-500.0,0.00055068,120]
[326936306,1715620251489,-764.66,0.00055068,21]
[326936307,1715620251499,-500.0,0.00055068,120]
[326936308,1715620251512,-500.0,0.00055068,120]
[326936309,1715620251522,-500.0,0.00055068,120]
[326936310,1715620251532,-500.0,0.00055068,7]
[326936311,1715620251542,-500.0,0.00055068,120]
[326936312,1715620251552,-500.0,0.00055068,120]
[326936313,1715620251562,-517.3383959,0.00055068,120]
[326936314,1715620251572,-1833.64,0.00055068,120]
[326936315,1715620251662,-500.0,0.00055068,120]
[326936316,1715620251672,-1000.0,0.00055068,120]
[326936317,1715620251682,-500.0,0.00055068,120]
[326936318,1715620251692,-673.29,0.00055068,120]
[326936319,1715620251701,-1891.43,0.00055068,120]
[326936320,1715620251711,-644.5,0.00055068,120]
[326936321,1715620251720,-500.0,0.00055068,120]
[326936322,1715620251735,-500.0,0.00055068,120]
[326936323,1715620251745,-5977.47,0.00055068,120]
[326936324,1715620251755,-779.24,0.00055068,120]
[326936325,1715620251764,-500.0,0.00055068,120]
[326936326,1715620251774,-542.62188358,0.00055068,120]
[326936327,1715620251784,-540.96760127,0.00055068,120]
[326936328,1715620251794,-500.0,0.00055068,120]
[326936329,1715620251803,-500.0,0.00055068,120]
[326936330,1715620251813,-282.62255339,0.00055068,120]
[326936331,1715620251823,-3679.56,0.00055068,120]
[326936332,1715620251833,-151.0,0.00055068,30]
[326936333,1715620251843,-811.32,0.00055068,120]
[326936334,1715620251852,-500.0,0.00055068,120]
[326936335,1715620251862,-500.0,0.00055068,120]
[326936336,1715620251872,-796.56,0.00055068,120]
[326936337,1715620251882,-521.03654429,0.00055068,120]
[326936338,1715620251891,-1232.69,0.00055068,120]
[326936339,1715620251901,-1479.77,0.00055068,120]
[326936340,1715620251911,-500.0,0.00055068,120]
[326936341,1715620251920,-500.0,0.00055068,120]
[326936342,1715620251930,-500.0,0.00055068,120]
[326936343,1715620251940,-500.0,0.00055068,120]
[326936344,1715620251950,-500.0,0.00055068,120]
[326936345,1715620251959,-12589.51,0.00055068,120]
[326936346,1715620251969,-210.34603915,0.00055068,120]
[326936347,1715620251982,-1000.0,0.00055068,4]
[326936348,1715620251991,-500.0,0.00055068,120]
[326936349,1715620252000,-500.0,0.00055068,120]
[326936350,1715620252010,-500.0,0.00055068,120]
[326936351,1715620252021,-200.0,0.00055241,120]
[326936352,1715620252030,-1412.14,0.00055342,120]
[326936353,1715620252040,-500.0,0.00055342,120]
[326936354,1715620252050,-599.01,0.00055342,120]
[326936355,1715620252060,-599.03,0.00055342,120]
[326936356,1715620252069,-378.14769661,0.00055342,120]
[326936357,1715620252078,-500.0,0.00055342,120]
[326936358,1715620252087,-500.0,0.00055342,120]
[326936359,1715620252096,-500.0,0.00055342,120]
[326936360,1715620252106,-500.0,0.00055342,120]
[326936361,1715620252115,-500.0,0.00055342,2]
[326936362,1715620252125,-1015.19,0.00055342,4]
[326936363,1715620252134,-500.0,0.00055342,120]
[326936364,1715620252143,-500.0,0.00055342,120]
[326936365,1715620252153,-649.51,0.00055342,120]
[326936366,1715620252162,-500.0,0.00055342,120]
[326936367,1715620252171,-500.0,0.00055342,30]
[326936368,1715620252180,-500.0,0.00055342,2]
[326936369,1715620252189,-500.0,0.00055342,120]
[326936370,1715620252199,-500.0,0.00055342,120]
[326936371,1715620252208,-500.0,0.00055342,120]
[326936372,1715620252217,-500.0,0.00055342,120]
[326936373,1715620252228,-536.93,0.00055342,120]
[326936374,1715620252237,-500.0,0.00055342,2]
[326936375,1715620252246,-714.05,0.00055342,120]
[326936376,1715620252255,-500.0,0.00055342,120]
[326936377,1715620252264,-500.0,0.00055342,120]
[326936378,1715620252273,-500.0,0.00055342,120]
[326936379,1715620252283,-500.0,0.00055342,120]
[326936380,1715620252292,-500.0,0.00055342,120]
[326936381,1715620252301,-842.83,0.00055342,120]
[326936382,1715620252311,-500.0,0.00055342,120]
[326936383,1715620252320,-500.0,0.00055342,120]
[326936384,1715620252329,-500.0,0.00055342,120]
[326936385,1715620252338,-537.34,0.00055342,120]
[326936386,1715620252347,-331.07213195,0.00055342,120]
[326936387,1715620252356,-2711.29,0.00055342,120]
[326936388,1715620252365,-500.0,0.00055342,120]
[326936389,1715620252374,-361.20289147,0.00055342,120]
[326936390,1715620252383,-500.0,0.00055342,120]
[326936391,1715620252392,-500.0,0.00055342,120]
[326936392,1715620252402,-2100.98,0.00055342,120]
[326936393,1715620252411,-500.0,0.00055342,120]
[326936394,1715620252425,-663.9,0.00055342,120]
[326936395,1715620252434,-500.0,0.00055342,120]
[326936396,1715620252443,-500.0,0.00055342,120]
[326936397,1715620252452,-500.0,0.00055342,120]
[326936398,1715620252463,-500.0,0.00055342,120]
[326936399,1715620252472,-1000.0,0.00055342,120]
[326936400,1715620252484,-1197.91,0.00055342,2]
[326936401,1715620252495,-712.92,0.00055342,120]
[326936402,1715620252505,-500.0,0.00055342,120]
[326936403,1715620252513,-3267.79,0.00055342,2]
[326936404,1715620252522,-500.0,0.00055342,120]
[326936405,1715620252531,-206.58165246,0.00055342,120]
[326936406,1715620252540,-500.0,0.00055342,120]
[326936407,1715620252549,-151.0,0.00055342,120]
[326936408,1715620252559,-151.0,0.00055342,120]
[326936409,1715620252568,-573.24,0.00055342,120]
[326936410,1715620252577,-500.0,0.00055342,120]
[326936411,1715620252586,-500.0,0.00055342,120]
[326936412,1715620252595,-621.0,0.00055342,120]
[326936413,1715620252605,-644.76,0.00055342,120]
[326936414,1715620252614,-500.0,0.00055342,120]
[326936415,1715620252623,-500.0,0.00055342,120]
[326936416,1715620252632,-593.33,0.00055342,120]
[326936417,1715620252641,-500.0,0.00055342,120]
[326936418,1715620252650,-671.99,0.00055342,120]
[326936419,1715620252659,-500.0,0.00055342,120]
[326936420,1715620252668,-500.0,0.00055342,120]
[326936421,1715620252677,-500.0,0.00055342,120]
[326936422,1715620252686,-764.66,0.00055342,21]
[326936423,1715620252695,-500.0,0.00055342,120]
[326936424,1715620252704,-500.0,0.00055342,120]
[326936425,1715620252713,-500.0,0.00055342,120]
[326936426,1715620252722,-500.0,0.00055342,7]
[326936427,1715620252736,-500.0,0.00055342,120]
[326936428,1715620252745,-500.0,0.00055342,120]
[326936429,1715620252754,-1833.64,0.00055342,120]
[326936430,1715620252770,-500.0,0.00055342,120]
[326936431,1715620252782,-1000.0,0.00055342,120]
[326936432,1715620252792,-500.0,0.00055342,120]
[326936433,1715620252802,-673.29,0.00055342,120]
[326936434,1715620252812,-1891.43,0.00055342,120]
[326936435,1715620252822,-500.0,0.00055342,120]
[326936436,1715620252831,-568.57381106,0.00055342,120]
[326936437,1715620252841,-5977.47,0.00055342,120]
[326936438,1715620252850,-779.24,0.00055342,120]
[326936439,1715620252859,-500.0,0.00055342,120]
[326936440,1715620252869,-500.0,0.00055342,120]
[326936441,1715620252878,-500.0,0.00055342,120]
[326936442,1715620252887,-3679.56,0.00055342,120]
[326936443,1715620252897,-223.429076,0.00055342,30]
[326936444,1715620252906,-811.32,0.00055342,120]
[326936445,1715620252916,-500.0,0.00055342,120]
[326936446,1715620252925,-500.0,0.00055342,120]
[326936447,1715620252934,-796.56,0.00055342,120]
[326936448,1715620252943,-1232.69,0.00055342,120]
[326936449,1715620252952,-1479.77,0.00055342,120]
[326936450,1715620252962,-500.0,0.00055342,120]
[326936451,1715620252971,-500.0,0.00055342,120]
[326936452,1715620252984,-500.0,0.00055342,120]
[326936453,1715620252993,-500.0,0.00055342,120]
[326936454,1715620253002,-500.0,0.00055342,120]
[326936455,1715620253012,-12589.51,0.00055342,120]
[326936456,1715620253021,-1000.0,0.00055342,4]
[326936457,1715620253029,-499.35863043,0.00055342,120]
[326936458,1715620253038,-500.0,0.00055342,120]
[326936459,1715620253047,-500.0,0.00055342,120]
[326936460,1715620253057,-1412.14,0.00055616,120]
[326936461,1715620253066,-500.0,0.00055616,120]
[326936462,1715620253076,-599.01,0.00055616,120]
[326936463,1715620253085,-599.03,0.00055616,120]
[326936464,1715620253095,-500.0,0.00055616,120]
[326936465,1715620253104,-500.0,0.00055616,120]
[326936466,1715620253113,-500.0,0.00055616,120]
[326936467,1715620253122,-500.0,0.00055616,120]
[326936468,1715620253132,-500.0,0.00055616,2]
[326936469,1715620253141,-1015.19,0.00055616,4]
[326936470,1715620253150,-500.0,0.00055616,120]
[326936471,1715620253159,-500.0,0.00055616,120]
[326936472,1715620253169,-649.51,0.00055616,120]
[326936473,1715620253179,-500.0,0.00055616,120]
[326936474,1715620253188,-500.0,0.00055616,30]
[326936475,1715620253198,-500.0,0.00055616,2]
[326936476,1715620253207,-500.0,0.00055616,120]
[326936477,1715620253217,-500.0,0.00055616,120]
[326936478,1715620253227,-499.99972297,0.00055616,120]
[326936479,1715620253236,-315.53264143,0.00055616,120]
[326936480,1715620253246,-536.93,0.00055616,120]
[326936481,1715620253255,-500.0,0.00055616,2]
[326936482,1715620253265,-714.05,0.00055616,120]
[326936483,1715620253274,-500.0,0.00055616,120]
[326936484,1715620253284,-500.0,0.00055616,120]
[326936485,1715620253293,-500.0,0.00055616,120]
[326936486,1715620253302,-500.0,0.00055616,120]
[326936487,1715620253311,-500.0,0.00055616,120]
[326936488,1715620253320,-842.83,0.00055616,120]
[326936489,1715620253330,-500.0,0.00055616,120]
[326936490,1715620253339,-500.0,0.00055616,120]
[326936491,1715620253348,-500.0,0.00055616,120]
[326936492,1715620253357,-537.34,0.00055616,120]
[326936493,1715620253366,-2711.29,0.00055616,120]
[326936494,1715620253375,-500.0,0.00055616,120]
[326936495,1715620253384,-500.0,0.00055616,120]
[326936496,1715620253393,-500.0,0.00055616,120]
[326936497,1715620253402,-2100.98,0.00055616,120]
[326936498,1715620253411,-500.0,0.00055616,120]
[326936499,1715620253421,-663.9,0.00055616,120]
[326936500,1715620253437,-500.0,0.00055616,120]
[326936501,1715620253447,-500.0,0.00055616,120]
[326936502,1715620253456,-500.0,0.00055616,120]
[326936503,1715620253466,-500.0,0.00055616,120]
[326936504,1715620253478,-1000.0,0.00055616,120]
[326936505,1715620253487,-1197.91,0.00055616,2]
[326936506,1715620253497,-712.92,0.00055616,120]
[326936507,1715620253509,-500.0,0.00055616,120]
[326936508,1715620253518,-3267.79,0.00055616,2]
[326936509,1715620253527,-500.0,0.00055616,120]
[326936510,1715620253536,-500.0,0.00055616,120]
[326936511,1715620253546,-151.0,0.00055616,120]
[326936512,1715620253555,-573.24,0.00055616,120]
[326936513,1715620253563,-500.0,0.00055616,120]
[326936514,1715620253573,-570.12311405,0.00055616,120]
[326936515,1715620253582,-621.0,0.00055616,120]
[326936516,1715620253591,-644.76,0.00055616,120]
[326936517,1715620253600,-501.8468945,0.00055616,120]
[326936518,1715620253609,-500.0,0.00055616,120]
[326936519,1715620253618,-593.33,0.00055616,120]
[326936520,1715620253628,-500.0,0.00055616,120]
[326936521,1715620253725,-671.99,0.00055616,120]
[326936522,1715620253743,-500.0,0.00055616,120]
[326936523,1715620253752,-500.0,0.00055616,120]
[326936524,1715620253761,-500.0,0.00055616,120]
[326936525,1715620253770,-764.66,0.00055616,21]
[326936526,1715620253779,-500.0,0.00055616,120]